bitfinex/quotes_ETHUSD_20250413
["timestamp","ask_amount","ask_price","bid_price","bid_amount"]
[1744521094800,6.22977,1605.2,1604.8,6.23118]
[1744521095001,0.7705,1605.1,1604.8,6.23118]
[1744521095986,0.7705,1605.1,1604.8,12.46228]
[1744521096175,0.22475084,1605.0,1604.9,6.23091]
[1744521096381,0.7705,1605.1,1604.9,6.23091]
[1744521096702,0.22475084,1605.0,1604.9,6.23091]
[1744521098317,0.22475084,1605.0,1604.8,6.2311]
[1744521098505,0.22475084,1605.0,1604.7,13.25104]
[1744521098708,0.22475084,1605.0,1604.9,6.23091]
[1744521099098,13.81866,1605.3,1604.9,6.23091]
[1744521099316,0.22492544,1605.2,1604.9,6.23091]
[1744521099622,0.22492544,1605.2,1604.9,12.46159]
[1744521099819,0.22492544,1605.2,1605.0,6.2305]
[1744521099993,0.22492544,1605.2,1605.0,6.2303]
[1744521102924,0.22492544,1605.2,1604.9,12.46164]
[1744521104430,1.62928398,1605.2,1604.7,13.08953]
[1744521104601,7.01481,1605.1,1604.7,12.30163]
[1744521104811,1.62928398,1605.2,1604.9,6.23065]
[1744521105040,1.40435854,1605.2,1604.9,12.46142]
[1744521105332,0.22183823,1605.1,1605.0,6.23022]
[1744521105730,7.6205,1605.3,1605.0,6.23022]
[1744521105932,0.22193284,1605.1,1605.0,6.23022]
[1744521106132,7.6205,1605.3,1605.0,6.23022]
[1744521106333,0.22206987,1605.1,1605.0,6.23022]
[1744521106639,0.7905,1604.9,1604.1,0.02]
[1744521106807,0.7905,1604.4,1604.1,0.02]
[1744521107006,7.02366,1604.4,1604.1,0.02]
[1744521107224,0.21776099,1604.3,1604.1,0.02]
[1744521107735,13.25684,1604.4,1604.1,0.02]
[1744521107736,0.21726206,1604.2,1604.1,0.02]
[1744521107935,13.2569,1604.4,1604.1,0.02]
[1744521108104,0.21726206,1604.2,1604.1,0.02]
[1744521108304,8.40435,1604.4,1604.1,0.02]
[1744521108652,0.21776099,1604.3,1604.1,6.254]
[1744521109002,13.80389,1604.6,1604.1,0.02]
[1744521109207,7.02185,1604.8,1604.3,6.23301]
[1744521109511,12.46214,1604.9,1604.5,7.00611]
[1744521109732,6.23096,1604.9,1604.5,7.00611]
[1744521109935,7.5715,1605.0,1604.6,6.23189]
[1744521110136,7.5715,1605.0,1604.7,12.46296]
[1744521110327,0.7905,1605.0,1604.8,6.23114]
[1744521110547,6.22979,1605.2,1604.8,6.23114]
[1744521110548,13.80087,1605.3,1604.8,6.23111]
[1744521110750,13.80087,1605.3,1604.9,6.23073]
[1744521111056,0.21626251,1605.2,1604.9,12.46142]
[1744521111458,0.21626251,1605.2,1605.0,6.23052]
[1744521112431,0.21626251,1605.2,1605.0,6.23036]
[1744521112661,0.21626251,1605.2,1605.1,6.23014]
[1744521113029,0.21626251,1605.2,1605.0,6.23036]
[1744521113231,0.21626251,1605.2,1605.0,7.557883]
[1744521113940,0.21626251,1605.2,1604.9,0.814]
[1744521114257,7.00498,1605.1,1604.7,6.23169]
[1744521114638,0.21526572,1605.0,1604.7,6.23169]
[1744521115866,6.44579572,1605.0,1604.7,6.23169]
[1744521116571,0.21526572,1605.0,1604.7,6.23146]
[1744521116868,0.21526572,1605.0,1604.8,6.2313]
[1744521117075,0.21526572,1605.0,1604.8,6.23116]
[1744521117372,12.45987,1605.2,1604.8,6.23116]
[1744521117541,0.21495647,1604.9,1604.8,6.23116]
[1744521117743,12.45987,1605.2,1604.8,6.23116]
[1744521117938,0.21505108,1604.9,1604.8,6.23116]
[1744521118452,7.476137,1605.1,1604.8,6.23116]
[1744521118633,0.21505108,1604.9,1604.7,12.46314]
[1744521118831,2.45712975,1605.5,1604.9,6.23091]
[1744521119175,6.2277,1605.8,1605.3,6.22924]
[1744521119342,6.22781,1605.7,1605.3,6.22924]
[1744521119741,6.22781,1605.7,1605.3,12.45843]
[1744521120280,6.2277,1605.8,1605.4,6.22897]
[1744521120456,0.62277,1605.7,1605.4,6.22897]
[1744521120656,0.62277,1605.7,1605.3,6.22919]
[1744521120857,0.62277,1605.7,1605.4,6.22897]
[1744521121875,6.85062,1605.7,1605.3,6.22914]
[1744521122083,0.801,1605.6,1605.2,6.22957]
[1744521122246,0.801,1605.6,1605.3,6.22932]
[1744521122446,1.566163,1605.6,1605.3,6.22932]
[1744521124453,6.2289,1605.5,1605.0,6.23039]
[1744521124664,6.2289,1605.5,1605.0,12.46071]
[1744521124875,6.2289,1605.5,1605.1,6.23013]
[1744521125882,6.2289,1605.5,1605.1,12.46013]
[1744521126077,0.20651052,1605.4,1605.3,6.22936]
[1744521126482,0.801,1605.6,1605.3,6.22936]
[1744521126778,0.20700868,1605.5,1605.3,6.22936]
[1744521126986,0.20700868,1605.5,1605.3,12.45856]
[1744521127280,0.20700868,1605.5,1605.2,12.45942]
[1744521127581,0.20700868,1605.5,1605.3,12.45858]
[1744521127770,0.20700868,1605.5,1605.3,6.22929]
[1744521127952,0.20700868,1605.5,1605.2,6.22972]
[1744521128597,0.20700868,1605.5,1605.2,6.22971]
[1744521128746,0.20700868,1605.5,1605.3,6.22923]
[1744521128949,0.20700868,1605.5,1605.2,6.22971]
[1744521129386,0.20700868,1605.5,1605.2,12.45925]
[1744521129756,0.20700868,1605.5,1605.3,6.22928]
[1744521130153,0.20700868,1605.5,1605.2,6.22954]
[1744521131084,0.20700868,1605.5,1605.1,6.23009]
[1744521131085,7.78206355,1605.5,1605.1,6.23009]
[1744521131487,7.0423,1605.3,1604.9,12.30074]
[1744521131803,6.2303,1605.1,1604.7,6.23166]
[1744521132157,0.20321064,1605.0,1604.7,6.23166]
[1744521132348,0.20321064,1605.0,1604.7,7.04014215]
[1744521132906,0.20321064,1605.0,1604.7,13.27152215]
[1744521133206,0.20321064,1605.0,1604.7,7.03996215]
[1744521133401,0.8126,1604.9,1604.6,6.23207]
[1744521133695,7.04364,1604.9,1604.5,6.23243]
[1744521133855,0.20150356,1604.8,1604.6,6.23188]
[1744521134473,0.20150356,1604.8,1604.5,6.23244]
[1744521134668,6.43284356,1604.8,1604.4,6.2328]
[1744521134956,6.43284356,1604.8,1604.4,13.16409]
[1744521135484,0.20150356,1604.8,1604.5,6.23243]
[1744521136350,0.20150356,1604.8,1604.5,12.46469]
[1744521136699,0.20150356,1604.8,1604.7,6.23169]
[1744521137051,7.8756,1605.3,1604.9,6.23062]
[1744521137256,8.79245083,1605.3,1604.9,6.23062]
[1744521137556,8.79245083,1605.3,1605.0,6.23037]
[1744521137761,15.02206083,1605.3,1604.9,12.46132]
[1744521138302,15.02206083,1605.3,1604.9,6.23062]
[1744521139590,1.34646487,1605.2,1604.9,6.23062]
[1744521139889,7.57640487,1605.2,1604.8,6.23124]
[1744521140184,6.23124,1604.9,1604.5,6.23242]
[1744521140355,6.23124,1604.9,1604.5,12.4647]
[1744521140686,0.8126,1605.0,1604.7,6.23155]
[1744521141062,0.18267476,1604.9,1604.6,6.23207]
[1744521141561,6.41379476,1604.9,1604.5,7.55427]
[1744521141761,0.18267476,1604.9,1604.4,6.2328]
[1744521142083,7.015,1604.8,1604.4,12.46545]
[1744521142388,6.23169,1604.7,1604.3,6.23324]
[1744521142595,0.96472389,1604.8,1604.5,6.23243]
[1744521142758,0.17918772,1604.6,1604.5,6.23243]
[1744521142959,0.7834,1604.8,1604.5,6.23243]
[1744521143160,0.17968653,1604.7,1604.5,6.23243]
[1744521143793,0.17968653,1604.7,1604.4,6.23284]
[1744521144092,0.17968653,1604.7,1604.4,6.23263]
[1744521144271,0.89913218,1604.7,1604.2,6.23347]
[1744521144471,0.89913218,1604.7,1604.3,6.23305]
[1744521144472,6.41173653,1604.7,1604.3,6.23305]
[1744521144673,6.41173653,1604.7,1604.4,12.4655]
[1744521144674,0.17968653,1604.7,1604.4,12.4655]
[1744521144868,0.17968653,1604.7,1604.5,6.23239]
[1744521145694,0.17968653,1604.7,1604.5,12.46464]
[1744521145895,0.17968653,1604.7,1604.6,6.23208]
[1744521146093,0.17968653,1604.7,1604.6,7.478513]
[1744521146265,0.17968653,1604.7,1604.6,11.294213]
[1744521146465,66.68477,1605.4,1604.9,12.46121]
[1744521146667,0.34303124,1605.3,1605.0,6.23048]
[1744521146861,0.34303124,1605.3,1604.3,13.29709]
[1744521146862,0.7597,1604.4,1604.1,6.25401]
[1744521147087,0.7597,1604.4,1604.1,7.502829]
[1744521147407,0.1628271,1604.3,1604.2,6.23363]
[1744521147899,6.99149,1604.7,1604.2,6.23341]
[1744521148192,6.99149,1604.7,1604.2,12.46682]
[1744521148394,0.16555453,1604.6,1604.2,6.23341]
[1744521148701,0.16555453,1604.6,1604.1,8.329099]
[1744521148702,0.7597,1604.4,1604.1,0.02]
[1744521148909,6.23345,1604.3,1604.1,0.02]
[1744521149092,6.39741344,1604.3,1604.1,0.02]
[1744521150388,6.99333,1604.2,1604.1,0.02]
[1744521150575,0.16270694,1604.2,1604.1,0.02]
[1744521150776,6.99262,1604.4,1604.1,0.02]
[1744521151098,0.16320592,1604.3,1604.1,6.25401]
[1744521151274,0.16320592,1604.3,1604.2,6.23363]
[1744521151475,0.7597,1604.6,1604.3,6.23321]
[1744521151794,0.7597,1604.6,1604.2,6.23363]
[1744521151795,6.99182,1604.6,1604.2,6.23363]
[1744521151967,13.22421,1604.6,1604.2,6.23363]
[1744521152797,6.99182,1604.6,1604.2,6.23363]
[1744521152962,6.99182,1604.6,1604.2,7.57414066]
[1744521153699,6.23262,1604.5,1604.1,0.02]
[1744521154201,6.23305,1604.4,1604.1,0.02]
[1744521154401,10.00435975,1604.2,1604.1,0.02]
[1744521154623,13.00435975,1604.2,1604.1,1e-05]
[1744521154911,0.7636,1603.8,1603.7,0.3931374]
[1744521155209,0.7636,1604.0,1603.7,0.3931374]
[1744521155413,6.23519,1603.8,1603.7,0.3931374]
[1744521155714,6.99879,1603.8,1603.7,0.3931374]
[1744521155922,7.54879,1603.8,1603.7,0.3931374]
[1744521156067,9.14270603,1603.8,1603.7,0.3931374]
[1744521157416,8.59270603,1603.8,1603.7,0.3931374]
[1744521158212,9.14270603,1603.8,1603.7,0.3931374]
[1744521159500,0.16052103,1603.8,1603.7,0.3931374]
[1744521160194,6.23444,1604.0,1603.7,0.3931374]
[1744521160399,0.16149386,1603.9,1603.7,0.3931374]
[1744521160610,6.39654386,1603.9,1603.7,0.3931374]
[1744521160818,6.52296,1602.6,1602.1,0.4131374]
[1744521161020,6.24083,1602.4,1602.1,0.4131374]
[1744521161314,6.39336472,1602.5,1602.1,0.4131374]
[1744521161519,6.24141,1602.2,1602.1,0.4131374]
[1744521161817,9.86595469,1602.2,1602.1,0.4131374]
[1744521161983,21.37740565,1602.2,1602.1,0.4131374]
[1744521162305,13.86269565,1602.2,1601.4,6.24437]
[1744521162497,6.24336,1601.7,1601.2,6.24507]
[1744521162691,6.24336,1601.7,1601.2,7.77972427]
[1744521162893,1.3661,1601.5,1601.0,10.41157258]
[1744521163106,0.14288853,1601.6,1601.1,8.85147266]
[1744521163311,0.14188722,1601.4,1601.3,6.24463]
[1744521163477,0.8161,1602.1,1601.1,8.85147266]
[1744521163478,6.24259,1601.9,1601.1,8.85147266]
[1744521163675,7.05827,1602.1,1601.5,6.24391]
[1744521164013,7.05982,1601.7,1601.1,6.24553]
[1744521164222,0.14288853,1601.6,1601.0,10.26304524]
[1744521164418,7.0618,1601.1,1601.0,10.26304524]
[1744521164602,0.1403848,1601.1,1601.0,10.26304524]
[1744521164820,0.55,1601.2,1601.0,10.26304524]
[1744521165003,7.20085628,1601.1,1601.0,10.26304524]
[1744521165203,0.95515628,1601.1,1601.0,10.26304524]
[1744521165408,0.95515628,1601.1,1601.0,5.24e-06]
[1744521165409,10.75085628,1601.1,1601.0,5.24e-06]
[1744521165595,0.95515628,1601.1,1600.8,3.90404882]
[1744521165940,7.20098628,1601.1,1600.8,3.90404882]
[1744521166141,0.55,1600.8,1600.5,0.3931374]
[1744521166442,10.61375,1600.6,1600.5,0.3931374]
[1744521166643,0.8161,1600.6,1600.5,0.3931374]
[1744521166792,0.94229304,1600.6,1599.6,14.119]
[1744521166996,7.19013304,1600.6,1600.0,6.24979]
[1744521167345,0.8161,1600.6,1599.3,0.2]
[1744521167496,7.06375,1600.6,1600.0,6.2497]
[1744521167691,0.8161,1600.6,1600.1,6.24953]
[1744521167928,0.8161,1600.6,1599.7,6.25114]
[1744521167929,3.55,1600.5,1599.9,6.25018]
[1744521168139,0.8161,1600.6,1600.1,6.24924]
[1744521168300,0.7648,1600.6,1599.2,6.52840796]
[1744521168518,0.7648,1600.6,1599.9,6.25011]
[1744521168823,0.7648,1600.6,1599.5,6.25195]
[1744521168824,0.7648,1600.6,1599.5,53.544]
[1744521169025,0.7648,1600.6,1599.6,5.3544]
[1744521169193,6.7985,1600.4,1599.8,6.25045]
[1744521169529,0.7648,1600.1,1599.7,6.25117]
[1744521169699,0.7648,1600.4,1599.3,2.34490979]
[1744521169898,6.24828,1600.5,1599.4,6.25234]
[1744521170203,7.01274,1600.6,1600.0,6.24976]
[1744521170417,6.24882,1600.3,1599.5,6.876944]
[1744521170726,0.7648,1600.4,1600.0,6.24977]
[1744521170892,0.7648,1600.4,1599.5,0.625234]
[1744521171099,6.24939,1600.2,1599.7,6.25098]
[1744521171294,6.25096,1599.8,1599.4,0.8013]
[1744521171506,3.7648,1600.4,1599.7,6.25094]
[1744521171507,6.24946,1600.2,1599.7,6.25094]
[1744521171695,4.3148,1600.4,1599.6,6.25156]
[1744521171894,8.954,1600.5,1599.5,6.25177]
[1744521171895,7.08264,1600.0,1599.5,6.25177]
[1744521172095,6.25116,1599.8,1599.1,0.02]
[1744521172329,0.8324,1599.9,1599.1,0.02]
[1744521172529,0.8324,1599.1,1598.4,0.96892393]
[1744521172730,6.11,1599.8,1598.5,0.7817]
[1744521172731,0.8324,1599.4,1598.5,0.7817]
[1744521172928,0.8324,1599.4,1598.5,7.03749]
[1744521172929,7.08503,1599.4,1598.5,7.03749]
[1744521173098,0.8324,1599.4,1599.0,6.2536]
[1744521173296,0.8324,1599.3,1597.7,0.2]
[1744521173535,0.8324,1600.3,1600.0,6.24975]
[1744521173737,0.8324,1600.3,1599.2,5.34490979]
[1744521173898,0.8324,1600.3,1598.8,10.83]
[1744521174235,0.8324,1600.3,1599.9,6.25016]
[1744521174399,9.24828,1600.5,1598.9,1.083]
[1744521174400,0.8324,1599.9,1598.9,1.083]
[1744521174597,7.08302,1599.9,1599.3,6.25249]
[1744521174828,9.25078,1599.8,1598.6,0.45986543]
[1744521175033,0.8324,1599.0,1598.4,6.25601]
[1744521175217,0.8324,1599.0,1598.1,6.25706]
[1744521175421,0.8324,1599.0,1597.7,2.34490979]
[1744521175422,2.34490979,1598.6,1597.7,6.25892]
[1744521175623,6.25685,1598.3,1597.6,6.25921]
[1744521175822,3.8324,1598.5,1597.3,53.583]
[1744521175823,0.8324,1598.5,1597.3,53.583]
[1744521176022,0.8324,1598.5,1597.7,6.2587]
[1744521176234,3.47926271,1598.8,1597.2,0.7817]
[1744521176235,0.8324,1598.4,1597.2,0.7817]
[1744521176538,0.8324,1598.4,1598.0,6.25756]
[1744521176712,0.8324,1598.4,1598.0,0.625756]
[1744521176923,0.8324,1598.4,1597.0,2.34490979]
[1744521176924,0.8155,1597.2,1596.8,6.26236]
[1744521177119,3.0,1597.5,1596.1,6.28493]
[1744521177120,0.07372114,1597.0,1596.1,6.28493]
[1744521177323,6.26118,1597.2,1596.3,0.7809]
[1744521177526,0.69983914,1597.2,1596.3,0.7809]
[1744521177837,0.8155,1597.4,1596.4,0.7809]
[1744521178157,0.07372114,1597.7,1596.2,62.22053979]
[1744521178354,0.8155,1597.9,1597.8,6.2586]
[1744521178509,0.8155,1597.9,1597.3,6.26056]
[1744521178709,0.8155,1597.9,1597.1,15.722]
[1744521178952,0.07372114,1598.0,1597.5,3.0]
[1744521179115,0.07372114,1598.1,1597.4,3.0]
[1744521179320,0.07372114,1597.9,1597.4,3.0]
[1744521179508,0.07372114,1597.9,1597.3,6.2605]
[1744521179712,0.07372114,1598.0,1597.4,6.88597]
[1744521179928,0.07372114,1597.8,1597.4,6.88611]
[1744521180252,0.07372114,1597.9,1597.4,0.62605]
[1744521180593,0.07372114,1598.4,1597.4,2.34490979]
[1744521180870,0.8155,1598.8,1598.5,6.25579]
[1744521180871,0.07372114,1598.8,1598.5,6.25579]
[1744521181076,0.07372114,1599.1,1598.6,9.25515]
[1744521181224,0.02,1599.4,1599.3,6.25273]
[1744521181659,5.35541305,1599.7,1599.3,6.25273]
[1744521181660,3.57816814,1599.7,1599.6,9.25156]
[1744521181962,7.832954,1600.1,1600.0,9.25]
[1744521182168,5.13515792,1600.4,1600.2,6.24913]
[1744521182390,5.13515792,1600.4,1600.2,18.97718]
[1744521182877,5.13515792,1600.4,1600.3,6.24882]
[1744521183064,5.13515792,1600.4,1600.3,8.146502]
[1744521183947,5.13515792,1600.4,1600.3,11.146502]
[1744521184257,6.29557898,1600.7,1600.4,6.24807]
[1744521184430,0.07372114,1600.5,1599.9,54.4118]
[1744521184629,0.07372114,1600.5,1600.0,9.24977]
[1744521184864,6.29557898,1600.7,1600.1,0.924977]
[1744521185063,6.29557898,1600.7,1600.1,7.174337]
[1744521185373,6.29557898,1600.7,1600.2,0.55]
[1744521185545,6.29557898,1600.7,1600.4,3.0]
[1744521185973,6.29557898,1600.7,1600.6,9.24765]
[1744521186286,0.07372114,1601.1,1600.6,4.549569]
[1744521186466,6.31899114,1601.3,1600.4,3.0]
[1744521186661,0.07372114,1600.9,1600.4,3.0]
[1744521187175,0.07372114,1601.1,1600.6,7.02626]
[1744521187371,0.07372114,1601.1,1600.7,0.702626]
[1744521187528,0.02,1601.4,1600.9,6.24609]
[1744521187729,0.07372114,1601.3,1600.8,12.49327]
[1744521187962,0.07372114,1601.3,1600.7,3.0]
[1744521188175,0.07372114,1601.2,1600.6,3.7788]
[1744521188359,0.07372114,1601.2,1600.7,3.0]
[1744521188557,0.07372114,1601.2,1600.6,0.7788]
[1744521188558,0.07372114,1601.0,1600.6,0.7788]
[1744521188762,0.07372114,1601.3,1600.8,3.0]
[1744521188933,6.31874114,1601.3,1600.8,3.0]
[1744521189137,0.07372114,1601.1,1600.7,6.24703]
[1744521189475,0.07372114,1601.2,1600.7,6.24703]
[1744521189678,6.31908114,1601.2,1600.7,3.0]
[1744521189877,0.07372114,1601.0,1600.6,0.7788]
[1744521190179,6.24744,1600.7,1600.3,0.7788]
[1744521190377,6.32094114,1600.8,1600.3,0.7788]
[1744521190586,0.07372114,1600.1,1599.6,0.7788]
[1744521190765,0.07372114,1600.1,1598.4,6.07]
[1744521190766,6.25266,1599.4,1598.8,7.03319]
[1744521190945,6.32638114,1599.4,1598.9,0.703319]
[1744521191165,6.32638114,1599.4,1599.0,9.2536]
[1744521191166,0.07372114,1599.4,1599.0,9.2536]
[1744521191351,6.25284,1599.3,1598.9,0.703319]
[1744521191846,0.07372114,1599.3,1598.9,0.703319]
[1744521192174,0.07372114,1599.3,1599.0,6.25366]
[1744521192379,0.07372114,1599.2,1598.8,20.0893]
[1744521192597,0.07372114,1599.3,1599.0,6.25366]
[1744521192791,0.07372114,1599.3,1599.1,6.25325]
[1744521193078,0.07372114,1599.2,1598.8,28.35283]
[1744521193242,6.32770114,1599.0,1598.8,2.00893]
[1744521193438,6.32770114,1599.0,1598.6,6.2551]
[1744521193439,0.07372114,1598.9,1598.3,0.8163]
[1744521193637,0.07372114,1599.0,1598.7,6.25502]
[1744521193866,0.07372114,1598.9,1598.5,6.25563]
[1744521194034,0.07372114,1599.0,1598.3,0.8163]
[1744521194239,0.07372114,1599.2,1598.7,6.25484]
[1744521194438,6.25195,1599.5,1598.7,0.625484]
[1744521194642,0.07372114,1599.1,1598.9,6.25408]
[1744521194835,0.07372114,1599.1,1598.8,6.25468]
[1744521195045,0.07372114,1599.3,1598.9,6.25411]
[1744521195244,19.30978,1599.8,1599.3,6.25257]
[1744521195245,6.25078,1599.8,1599.3,6.25257]
[1744521195445,0.07372114,1599.7,1599.4,6.25217]
[1744521195772,0.07372114,1600.1,1599.8,6.25075]
[1744521195975,0.07372114,1600.3,1599.8,6.25071]
[1744521196287,0.07372114,1600.3,1599.9,6.25016]
[1744521196489,0.07372114,1600.3,1600.1,6.24954]
[1744521196845,0.07372114,1600.3,1599.9,18.96801]
[1744521197185,0.07372114,1600.1,1599.6,7.06757]
[1744521197368,0.07372114,1600.1,1599.9,6.25039]
[1744521197572,6.32232114,1600.4,1599.8,6.2505]
[1744521197863,0.07372114,1600.2,1599.9,6.25017]
[1744521198065,0.07372114,1601.0,1600.6,6.24765]
[1744521198241,0.07372114,1600.9,1600.5,6.24797]
[1744521198441,0.07372114,1600.8,1600.5,6.24797]
[1744521198698,0.07372114,1601.2,1600.8,6.24656]
[1744521198986,0.07372114,1601.0,1600.9,6.24626]
[1744521199184,6.26485,1601.4,1601.0,6.24606]
[1744521199185,0.07372114,1601.2,1601.0,6.24606]
[1744521199386,0.02,1601.4,1600.7,6.07]
[1744521199387,0.09372114,1601.4,1600.7,6.07]
[1744521199586,0.07372114,1601.0,1600.8,6.24665]
[1744521199891,0.07372114,1601.2,1600.9,6.24629]
[1744521200088,0.07372114,1601.1,1600.5,4.24962]
[1744521200275,0.07372114,1600.8,1600.7,6.24703]
[1744521200677,0.07372114,1600.7,1600.5,6.248]
[1744521201228,0.07372114,1600.7,1600.4,12.49624]
[1744521201395,0.07372114,1600.7,1600.4,6.2481]
[1744521201563,0.07372114,1600.6,1600.2,6.24898]
[1744521201768,0.07372114,1600.5,1600.3,6.24861]
[1744521202211,0.07372114,1600.5,1600.2,12.4984]
[1744521202421,0.07372114,1600.4,1600.1,6.24958]
[1744521202565,0.07372114,1600.3,1600.1,6.24958]
[1744521202917,0.07372114,1600.2,1600.0,6.24971]
[1744521203069,0.07372114,1600.6,1600.2,3.0]
[1744521203269,0.07372114,1601.0,1600.4,6.24843]
[1744521203502,0.07372114,1600.7,1600.4,12.715]
[1744521203813,0.07372114,1600.7,1600.6,6.24765]
[1744521203978,0.07372114,1600.8,1600.7,6.24726]
[1744521204161,0.07372114,1600.8,1600.6,6.24765]
[1744521204358,0.07372114,1600.7,1600.5,6.24782]
[1744521204608,0.07372114,1600.8,1600.6,6.24765]
[1744521204771,0.07372114,1600.8,1600.7,6.24693]
[1744521205806,0.07372114,1601.2,1600.9,6.24648]
[1744521206007,0.07372114,1601.0,1600.7,6.24719]
[1744521206193,0.07372114,1601.0,1600.7,6.24708]
[1744521206399,0.07372114,1600.8,1600.6,12.31765]
[1744521206581,0.07372114,1601.3,1601.2,6.24531]
[1744521207107,0.07372114,1601.3,1601.1,6.24564]
[1744521207108,0.02,1601.4,1601.3,6.24492]
[1744521207274,0.07372114,1601.3,1601.1,6.24561]
[1744521207487,0.07372114,1601.3,1601.2,6.24531]
[1744521207686,0.02,1601.4,1601.2,6.24531]
[1744521207687,0.09372114,1601.4,1601.3,6.24492]
[1744521207910,0.02,1601.4,1601.3,6.24492]
[1744521208219,0.07372114,1600.8,1600.7,6.24688]
[1744521208405,0.07372114,1600.8,1600.6,6.24751]
[1744521208608,0.07372114,1600.7,1600.5,6.24801]
[1744521208793,0.07372114,1600.7,1600.5,6.24804]
[1744521208989,0.07372114,1600.9,1600.7,6.24726]
[1744521209187,0.07372114,1600.9,1600.8,6.24687]
[1744521209387,0.07372114,1601.1,1601.0,6.24609]
[1744521209589,0.07372114,1601.1,1600.9,6.24644]
[1744521209917,0.07372114,1601.0,1600.8,6.24673]
[1744521210085,0.07372114,1600.9,1600.7,6.24716]
[1744521210290,0.07372114,1600.7,1600.6,12.712]
[1744521210503,0.07372114,1600.6,1600.3,6.24878]
[1744521210699,0.07372114,1600.4,1600.3,6.24878]
[1744521210904,0.07372114,1600.4,1600.1,6.24944]
[1744521211220,6.24784,1600.6,1600.1,6.24944]
[1744521211221,0.07372114,1600.2,1600.1,6.24944]
[1744521214099,0.07372114,1600.6,1599.9,53.591]
[1744521214322,0.07372114,1600.4,1600.3,6.24882]
[1744521215795,0.7863,1600.8,1600.4,6.24824]
[1744521216018,0.07372114,1600.5,1600.4,6.24824]
[1744521216223,0.07372114,1600.4,1600.2,12.31918]
[1744521216429,0.07372114,1600.3,1600.1,6.24955]
[1744521216637,0.07372114,1600.3,1600.1,12.49901]
[1744521216937,0.07372114,1600.2,1599.9,65.91117]
[1744521217234,0.07372114,1600.2,1599.9,59.84117]
[1744521217438,0.07372114,1600.2,1600.0,6.24985]
[1744521218135,0.07372114,1600.2,1600.1,6.2496]
[1744521218537,0.07372114,1600.2,1600.0,12.49968]
[1744521219038,0.07372114,1600.2,1600.1,6.2496]
[1744521219804,0.07372114,1600.2,1600.0,12.49968]
[1744521220116,0.07372114,1600.2,1600.1,6.2496]
[1744521221812,0.07372114,1600.2,1600.0,6.24976]
[1744521222129,0.07372114,1600.2,1600.1,6.2496]
[1744521223611,0.07372114,1600.1,1600.0,6.24978]
[1744521224249,0.07372114,1600.2,1599.9,6.25038]
[1744521224538,0.07372114,1600.0,1599.8,6.25061]
[1744521224843,0.768,1599.8,1599.5,6.07]
[1744521225047,0.768,1599.8,1598.2,53.594]
[1744521225048,0.07372114,1598.8,1598.6,6.2553]
[1744521225249,0.07372114,1598.8,1598.7,6.25508]
[1744521225423,5.34490979,1599.7,1598.6,6.2553]
[1744521225424,0.07372114,1599.1,1598.8,6.25469]
[1744521225628,0.07372114,1599.5,1599.0,7.01978]
[1744521225851,0.768,1599.9,1599.5,6.25195]
[1744521226017,0.07372114,1599.9,1599.8,6.25078]
[1744521226346,0.07372114,1599.8,1599.7,6.25117]
[1744521226755,0.07372114,1599.9,1599.8,6.25078]
[1744521227046,0.07372114,1600.0,1599.9,6.25039]
[1744521227252,0.768,1600.2,1600.0,6.24986]
[1744521227453,0.07372114,1599.9,1599.8,6.25073]
[1744521227620,0.07372114,1599.8,1599.6,6.25152]
[1744521227814,0.07372114,1599.6,1599.5,6.25194]
[1744521228223,0.07372114,1599.6,1599.5,6.25195]
[1744521229340,0.07372114,1599.7,1599.6,6.25156]
[1744521230448,0.07372114,1599.8,1599.7,6.25117]
[1744521230824,0.07372114,1599.9,1599.8,6.25078]
[1744521231139,0.07372114,1599.9,1599.8,6.25074]
[1744521231456,0.07372114,1599.8,1599.7,6.25113]
[1744521232452,0.07372114,1599.8,1599.7,6.25117]
[1744521232839,0.768,1600.2,1600.0,6.24994]
[1744521233052,0.07372114,1600.1,1600.0,6.24994]
[1744521233648,0.07372114,1599.8,1599.6,6.2514]
[1744521233823,0.07372114,1599.8,1599.7,6.25117]
[1744521235457,0.07372114,1599.7,1599.6,6.25135]
[1744521235661,0.07372114,1599.7,1599.6,6.25156]
[1744521235865,0.815,1598.8,1598.2,6.25703]
[1744521236161,0.07372114,1598.6,1598.3,13.138753]
[1744521236363,0.07372114,1598.5,1598.1,0.02]
[1744521236567,0.07372114,1598.3,1598.2,6.25673]
[1744521236935,0.07372114,1598.3,1598.1,12.53454]
[1744521237336,0.07372114,1598.4,1598.2,6.25703]
[1744521237534,0.07372114,1598.3,1598.2,6.25703]
[1744521238068,0.07372114,1598.3,1598.2,7.510447]
[1744521238453,0.07372114,1598.5,1598.4,6.25625]
[1744521238853,0.07372114,1598.7,1598.6,6.25547]
[1744521239054,0.07372114,1598.9,1598.7,6.25508]
[1744521239236,0.07372114,1599.2,1599.1,6.25351]
[1744521239565,6.25138,1599.7,1599.2,6.25312]
[1744521239566,4.02894214,1599.3,1599.2,6.25312]
[1744521239966,3.955221,1599.3,1599.2,6.25312]
[1744521240134,3.955221,1599.3,1599.2,10.503783]
[1744521240331,4.02894214,1599.3,1599.2,7.503783]
[1744521240536,4.02894214,1599.3,1599.2,6.25312]
[1744521240759,3.955221,1599.3,1599.2,9.25312]
[1744521241083,3.955221,1599.3,1599.2,6.25312]
[1744521241381,3.955221,1599.3,1599.2,9.25312]
[1744521241882,4.02894214,1599.3,1599.2,6.25312]
[1744521242047,0.07372114,1599.2,1599.0,6.25367]
[1744521242255,0.07372114,1599.2,1599.1,6.25351]
[1744521242577,0.07372114,1598.9,1598.8,6.25444]
[1744521242740,0.07372114,1598.8,1598.7,6.25506]
[1744521243139,0.07372114,1598.7,1598.3,6.25662]
[1744521243452,0.07372114,1598.4,1598.3,6.25662]
[1744521243793,0.07372114,1598.5,1598.4,6.25625]
[1744521244269,0.07372114,1598.3,1598.2,6.25686]